fUSD/lending_fUSD_20250404
["ID","MTS","AMOUNT","RATE_DAILY","PERIOD"]
[357142687,1743787847033,-500.0,0.00049589,120]
[357142688,1743787847042,-500.0,0.00049589,30]
[357142689,1743787847052,-538.49,0.00049589,120]
[357142690,1743787847062,-500.0,0.00049589,120]
[357142691,1743787847072,-500.0,0.00049589,120]
[357142692,1743787847082,-2999.97,0.00049589,2]
[357142693,1743787847091,-500.0,0.00049589,120]
[357142694,1743787847103,-907.09,0.00049589,120]
[357142695,1743787847113,-535.46286945,0.00049589,120]
[357142696,1743787847122,-400.76903112,0.00049589,120]
[357142697,1743787847132,-500.0,0.00049589,7]
[357142698,1743787847142,-268.40058625,0.00049589,120]
[357142699,1743787847152,-500.0,0.00049589,120]
[357142700,1743787847162,-205.02848592,0.00049589,120]
[357142701,1743787847171,-500.0,0.00049589,120]
[357142702,1743787847181,-500.0,0.00049589,120]
[357142703,1743787847191,-323.09107961,0.00049589,120]
[357142704,1743787847201,-500.0,0.00049589,120]
[357142705,1743787847212,-500.0,0.00049589,120]
[357142706,1743787847223,-500.0,0.00049589,120]
[357142707,1743787847233,-857.64,0.00049589,120]
[357142708,1743787847243,-309.97503208,0.00049589,120]
[357142709,1743787847253,-500.0,0.00049589,100]
[357142710,1743787847263,-500.0,0.00049589,120]
[357142711,1743787847273,-500.0,0.00049589,120]
[357142712,1743787847283,-1688.06,0.00049589,120]
[357142713,1743787847293,-500.0,0.00049589,120]
[357142714,1743787847307,-738.53,0.00049589,120]
[357142715,1743787847317,-500.0,0.00049589,120]
[357142716,1743787847327,-500.0,0.00049589,120]
[357142717,1743787847338,-220.07888574,0.00049589,120]
[357142718,1743787847348,-500.0,0.00049589,120]
[357142719,1743787847365,-500.0,0.00049589,120]
[357142720,1743787847375,-542.04,0.00049589,120]
[357142721,1743787847385,-684.54,0.00049589,120]
[357142722,1743787847396,-169.51348153,0.00049589,120]
[357142723,1743787847407,-500.0,0.00049589,120]
[357142724,1743787847416,-484.90035094,0.00049589,120]
[357142725,1743787847425,-500.0,0.00049589,120]
[357142726,1743787847439,-500.0,0.00049589,120]
[357142727,1743787847448,-500.0,0.00049589,120]
[357142728,1743787847458,-500.0,0.00049589,120]
[357142729,1743787847467,-500.0,0.00049589,120]
[357142730,1743787847478,-500.0,0.00049589,10]
[357142731,1743787847488,-443.63563698,0.00049589,120]
[357142732,1743787847498,-500.0,0.00049589,120]
[357142733,1743787847508,-500.0,0.00049589,120]
[357142734,1743787847518,-421.86540039,0.00049589,120]
[357142735,1743787847528,-500.0,0.00049589,120]
[357142736,1743787847537,-500.0,0.00049589,120]
[357142737,1743787847547,-548.99503864,0.00049589,120]
[357142738,1743787847557,-500.0,0.00049589,120]
[357142739,1743787847567,-592.91656909,0.00049589,120]
[357142740,1743787847577,-500.0,0.00049589,120]
[357142741,1743787847586,-1875.29,0.00049589,120]
[357142742,1743787847596,-500.0,0.00049589,120]
[357142743,1743787847607,-508.26,0.00049589,120]
[357142744,1743787847617,-500.0,0.00049589,120]
[357142745,1743787847626,-500.0,0.00049589,120]
[357142746,1743787847636,-151.0,0.00049589,120]
[357142747,1743787847645,-442.66621602,0.00049589,120]
[357142748,1743787847655,-685.91,0.00049589,120]
[357142749,1743787847665,-1242.29097,0.00049589,120]
[357142750,1743787847675,-1630.45,0.00049589,120]
[357142751,1743787847685,-1242.29097,0.00049589,120]
[357142752,1743787847694,-514.47,0.00049589,120]
[357142753,1743787847704,-500.0,0.00049589,120]
[357142754,1743787847714,-500.0,0.00049589,120]
[357142755,1743787847724,-500.0,0.00049589,120]
[357142756,1743787847734,-500.0,0.00049589,120]
[357142757,1743787847743,-825.72,0.00049589,120]
[357142758,1743787847752,-500.0,0.00049589,120]
[357142759,1743787847762,-570.54,0.00049589,120]
[357142760,1743787847771,-524.14,0.00049589,120]
[357142761,1743787847781,-500.0,0.00049589,120]
[357142762,1743787847790,-500.0,0.00049589,120]
[357142763,1743787847800,-500.0,0.00049589,120]
[357142764,1743787847810,-654.5,0.00049589,120]
[357142765,1743787847820,-500.0,0.00049589,120]
[357142766,1743787847830,-500.0,0.00049589,120]
[357142767,1743787847840,-169.91980135,0.00049589,120]
[357142768,1743787847849,-908.92,0.00049589,120]
[357142769,1743787847860,-500.0,0.00049589,120]
[357142770,1743787847870,-2359.71,0.00049589,7]
[357142771,1743787847880,-500.0,0.00049589,120]
[357142772,1743787847893,-500.0,0.00049589,120]
[357142773,1743787847903,-1118.39,0.00049589,120]
[357142774,1743787847914,-500.0,0.00049589,120]
[357142775,1743787847924,-500.0,0.00049589,120]
[357142776,1743787847935,-500.0,0.00049589,2]
[357142777,1743787847946,-524.81894538,0.00049589,120]
[357142778,1743787847956,-934.65,0.00049589,120]
[357142779,1743787847967,-500.0,0.00049589,120]
[357142780,1743787847978,-500.0,0.00049589,120]
[357142781,1743787847989,-500.0,0.00049589,120]
[357142782,1743787847999,-500.0,0.00049589,2]
[357142783,1743787848009,-500.0,0.00049589,120]
[357142784,1743787848019,-500.0,0.00049589,120]
[357142785,1743787848155,-793.57,0.00049589,120]
[357142786,1743787848165,-1219.9,0.00049589,120]
[357142787,1743787848176,-500.0,0.00049589,120]
[357142788,1743787848186,-175.11929874,0.00049589,120]
[357142789,1743787848196,-500.0,0.00049589,120]
[357142790,1743787848206,-500.0,0.00049589,120]
[357142791,1743787848216,-500.0,0.00049589,120]
[357142792,1743787848226,-500.0,0.00049589,120]
[357142793,1743787848237,-500.0,0.00049589,120]
[357142794,1743787848246,-500.0,0.00049589,120]
[357142795,1743787848256,-500.0,0.00049589,120]
[357142796,1743787848265,-4812.53,0.00049589,120]
[357142797,1743787848275,-500.0,0.00049589,120]
[357142798,1743787848285,-500.0,0.00049589,2]
[357142799,1743787848295,-500.0,0.00049589,120]
[357142800,1743787848304,-500.0,0.00049589,120]
[357142801,1743787848314,-500.0,0.00049589,120]
[357142802,1743787848323,-1318.54,0.00049589,120]
[357142803,1743787848333,-500.0,0.00049589,120]
[357142804,1743787848343,-500.0,0.00049589,120]
[357142805,1743787848353,-500.0,0.00049589,120]
[357142806,1743787848366,-500.0,0.00049589,120]
[357142807,1743787848376,-553.61,0.00049589,120]
[357142808,1743787848386,-500.0,0.00049589,120]
[357142809,1743787848395,-500.0,0.00049589,2]
[357142810,1743787848405,-150.0,0.00049691,7]
[357142811,1743787848415,-150.0,0.00049692,7]
[357142812,1743787848425,-1292.6642936,0.00049704,4]
[357142813,1743787848435,-152.29444619,0.00049763,26]
[357142814,1743787848446,-6726.4992132,0.0004978,120]
[357142815,1743787848456,-619.97,0.00049789,120]
[357142816,1743787848466,-3896.57157165,0.0004979,120]
[357142817,1743787848477,-619.97,0.00049799,120]
[357142818,1743787848487,-2852.88272891,0.000498,30]
[357142819,1743787848649,-1351.34840755,0.000498,30]
[357142820,1743787848662,-3748.65159245,0.000498,30]
[357142821,1743787848708,-500.0,0.00049315,120]
[357142822,1743787848719,-3071.42,0.000498,30]
[357142823,1743787848731,-474.19459788,0.000498,30]
[357142824,1743787848743,-397.44590748,0.000498,30]
[357142825,1743787848754,-3594.08915621,0.000498,30]
[357142826,1743787849141,-500.0,0.00049315,120]
[357142827,1743787849151,-332.7185934,0.00049589,120]
[357142828,1743787849174,-166.99521515,0.00049315,120]
[357142829,1743787849185,-167.2814066,0.00049589,120]
[357142830,1743787849194,-220.47268493,0.000498,30]
[357142831,1743787849206,-2119.45956,0.000498,30]
[357142832,1743787849505,-21.91567983,0.000449,2]
[357142833,1743787849517,-318.15228276,0.000449,2]
[357142834,1743787850120,-250.0,0.00037,2]
[357142835,1743787850131,-531.24944256,0.000449,2]
[357142836,1743787850141,-871.31740514,0.0004795,2]
[357142837,1743787850151,-522.79583085,0.00049315,120]
[357142838,1743787850161,-20755.48476154,0.000498,30]
[357142839,1743787850342,-471.90241416,0.000498,30]
[357142840,1743787923988,-184.11755892,0.00049,60]
[357142841,1743787943505,-150.0,0.000438,120]
[357142848,1743788396861,-150.0,0.00021917,2]
[357142849,1743788463488,151.65684292,0.0003,30]
[357142855,1743788732083,-150.0,0.00023287,2]
[357142856,1743788732108,-4.33232627,0.00024657,2]
[357142857,1743788826143,-680.84616495,0.00024657,2]
[357142858,1743788826165,-145.66767373,0.00024657,2]
[357142859,1743788826189,-172.04680925,0.00026027,2]
[357142860,1743788826210,-300.08,0.00026849,2]
[357142861,1743788826231,-300.08,0.00032646,2]
[357142862,1743788826250,-150.0,0.00034548,10]
[357142863,1743788826469,-159.97473915,0.00034781,2]
[357142864,1743788826492,-90.17967443,0.00034781,2]
[357142865,1743788830094,-618.25961465,0.00034781,2]
[357142866,1743788830115,-400.0,0.0003488,2]
[357142867,1743788830138,-1202.69753707,0.00034881,7]
[357142868,1743788845080,-150.03717506,0.0003478,2]
[357142869,1743788845102,-292.80181118,0.00034881,7]
[357142870,1743788845133,-259.189195,0.00034881,7]
[357142871,1743788850090,-2472.80586747,0.00034881,7]
[357142876,1743788947105,-400.0,0.0003488,2]
[357142877,1743788947128,-3304.42547328,0.00034881,7]
[357142878,1743788947150,-710.31488472,0.00034881,7]
[357142879,1743788949105,-2107.80636828,0.00034881,7]
[357142880,1743788949129,-910.693394,0.00034881,7]
[357142881,1743788949152,-165.28,0.00037111,2]
[357142882,1743788949174,-819.56568977,0.000372,103]
[357142883,1743788949195,-560.0,0.00037404,2]
[357142884,1743788949216,-300.08,0.00038443,2]
[357142885,1743788949238,-819.56568976,0.00038623,112]
[357142886,1743788949259,-705.0,0.0004011,5]
[357142887,1743788949283,-3211.0,0.000405,3]
[357142888,1743788949304,-5555.0,0.000415,5]
[357142889,1743788949327,-819.56568976,0.00042466,120]
[357142890,1743788949348,-227.61329298,0.00042691,31]
[357142891,1743788949370,-23900.0,0.00042692,2]
[357142892,1743788949397,-152.45,0.000436,36]
[357142893,1743788949425,-152.45,0.000436,36]
[357142894,1743788949448,-681.59,0.000436,30]
[357142895,1743788949477,-837.37,0.000436,2]
[357142896,1743788949504,-151.0,0.00043628,2]
[357142897,1743788949528,-2.67856202,0.000438,120]
[357142898,1743788949551,-8277.84,0.00044085,2]
[357142899,1743788949573,-300.08,0.00044239,2]
[357142900,1743788949595,-250.0,0.000444,2]
[357142901,1743788949617,-350.0,0.000444,12]
[357142902,1743788949638,-150.07,0.00044613,2]
[357142903,1743788949660,-2000.0,0.000447,2]
[357142904,1743788949682,-271.74,0.00044734,2]
[357142905,1743788949704,-1000.0,0.00045,120]
[357142906,1743788949726,-151.0,0.00045,120]
[357142910,1743788991895,1000.0,0.00045,120]
[357142924,1743789032050,-293.28,0.00045669,2]
[357142925,1743789032059,-433.15,0.00045913,2]
[357142926,1743789032069,-1343.51252881,0.00046,2]
[357143091,1743789037673,-552.6000004,0.00046,2]
[357143092,1743789037731,-123750.88747079,0.00046,2]
[357143093,1743789037740,-159.97473914,0.00046162,2]
[357143094,1743789037750,-847.83938089,0.00046162,15]
[357143095,1743789037759,-42677.84853344,0.000462,120]
[357143096,1743789037774,-837.36800416,0.000462,120]
[357143097,1743789037875,-222.09722895,0.000462,120]
[357143098,1743789037930,-5958.93769746,0.000462,120]
[357143099,1743789037942,-541.21176251,0.000462,120]
[357143100,1743789037953,-1360.21613656,0.000462,120]
[357143102,1743789037968,-14403.92275533,0.000462,120]
[357143104,1743789037977,-250.0,0.00046262,2]
[357143106,1743789037987,-152.45,0.000464,39]
[357143108,1743789037996,-152.45,0.000464,39]
[357143110,1743789038005,-152.45,0.000464,39]
[357143112,1743789038014,-152.45,0.000464,39]
[357143114,1743789038024,-199.13,0.0004652,120]
[357143116,1743789038033,-1077.7,0.0004652,2]
[357143118,1743789038043,-538.6508462,0.00046959,120]
[357143120,1743789038052,-155.47,0.00047015,120]
[357143122,1743789038061,-150.25,0.00047022,2]
[357143124,1743789038070,-150.0,0.00047064,7]
[357143126,1743789038080,-1539.0,0.0004739,5]
[357143130,1743789038092,-2000.0,0.000474,2]
[357143131,1743789038102,-155.47,0.00047627,2]
[357143133,1743789038111,-150.0,0.00047672,7]
[357143135,1743789038121,-1220.71750678,0.00047754,30]
[357143137,1743789038130,-1000.0,0.00047816,120]
[357143139,1743789038139,-150.0,0.00047859,7]
[357143141,1743789038148,-150.0,0.00048104,7]
[357143143,1743789038157,-150.0,0.00048122,7]
[357143145,1743789038167,-150.0,0.00048129,7]
[357143147,1743789038176,-250.0,0.0004818,2]
[357143149,1743789038185,-350.0,0.0004818,12]
[357143151,1743789038194,-433.15,0.00048209,2]
[357143153,1743789038204,-150.0,0.00048239,7]
[357143155,1743789038213,-1000.0,0.00048254,2]
[357143157,1743789038222,-451.316,0.00048254,83]
[357143159,1743789038231,-150.0,0.00048313,7]
[357143161,1743789038240,-300.0,0.0004855,7]
[357143163,1743789038249,-150.0,0.00048553,7]
[357143165,1743789038258,-150.0,0.0004856,7]
[357143167,1743789038267,-150.0,0.00048571,7]
[357143169,1743789038277,-150.0,0.00048571,7]
[357143170,1743789038286,-150.0,0.00048593,7]
[357143172,1743789038295,-13316.730828,0.0004869,4]
[357143174,1743789038305,-79643.89570511,0.000487,2]
[357143176,1743789038314,-588.3441,0.000487,2]
[357143178,1743789038323,-2079.7296,0.000487,15]
[357143179,1743789038335,-150.0,0.00048703,7]
[357143180,1743789038344,-150.0,0.00048711,7]
[357143181,1743789038354,-172.75,0.00048712,2]
[357143182,1743789038363,-150.0,0.00048715,7]
[357143183,1743789038372,-150.0,0.00048749,7]
[357143184,1743789038385,-150.0,0.00048755,7]
[357143185,1743789038394,-150.0,0.00048784,7]
[357143186,1743789038403,-1077.7,0.00048784,2]
[357143187,1743789038412,-26633.4616561,0.0004879,4]
[357143188,1743789038421,-150.0,0.00048794,7]
[357143189,1743789038430,-4427.3001,0.000488,2]
[357143190,1743789038440,-213.2909,0.000488,2]
[357143191,1743789038449,-62306.7936,0.000488,2]
[357143192,1743789038458,-1057.7145654,0.00048804,30]
[357143193,1743789038467,-150.0,0.00048832,7]
[357143194,1743789038477,-2079.72959992,0.00048833,15]
[357143196,1743789038486,-66583.6541402,0.0004884,4]
[357143198,1743789038496,-150.0,0.00048871,7]
[357143200,1743789038505,-302.0,0.00048871,2]
[357143201,1743789038515,-1000.0,0.00048871,2]
[357143203,1743789038524,-150.0,0.00048874,7]
[357143205,1743789038533,-150.0,0.00048876,7]
[357143207,1743789038543,-13316.730828,0.0004888,4]
[357143209,1743789038552,-6726.49,0.0004889,120]
[357143211,1743789038561,-154.09630242,0.0004889,34]
[357143213,1743789038570,-79900.3849682,0.0004889,4]
[357143215,1743789038579,-150.56,0.0004889,2]
[357143217,1743789038592,-6186.2816,0.000489,2]
[357143219,1743789038602,-1000.0,0.000489,2]
[357143221,1743789038611,-500.0,0.000489,2]
[357143223,1743789038620,-262.8593,0.000489,2]
[357143225,1743789038629,-108515.8709768,0.000489,120]
[357143227,1743789038639,-47501.1726,0.000489,2]
[357143229,1743789038649,-891.2849,0.000489,2]
[357143231,1743789038659,-3571.42,0.000489,2]
[357143233,1743789038668,-12192.8756,0.000489,2]
[357143235,1743789038678,-1404.3491,0.000489,2]
[357143237,1743789038687,-150.0,0.000489,7]
[357143239,1743789038696,-152.29444619,0.000489,25]
[357143241,1743789038706,-13316.730828,0.00048957,4]
[357143243,1743789038715,-150.56,0.00048958,2]
[357143245,1743789038725,-2079.72959992,0.00048967,15]
[357143247,1743789038739,-129819.20219442,0.00048968,30]
[357143249,1743789038748,-150.0,0.00048968,7]
[357143251,1743789038758,-106533.846624,0.0004898,4]
[357143253,1743789038768,-150.56,0.0004899,120]
[357143255,1743789038777,-150.56,0.0004899,120]
[357143257,1743789038790,-150.56,0.0004899,120]
[357143259,1743789038801,-150.56,0.0004899,120]
[357143262,1743789038811,-150.56,0.0004899,120]
[357143263,1743789038822,-405558.67545563,0.00049,60]
[357143266,1743789038837,-12451.11417209,0.00049,60]
[357143329,1743789039853,-847.83938085,0.00046588,15]
[357143330,1743789039863,-5788.14373601,0.00049,60]
[357143331,1743789039894,-202.59119274,0.00049,60]
[357143332,1743789039907,-1120.52455002,0.00049,60]
[357143333,1743789039921,-311.11017749,0.00049,60]
[357143334,1743789039932,-8420.30000691,0.00049,60]
[357143335,1743789040002,-35278.33096163,0.00049,60]
[357143336,1743789040014,-30685.09218856,0.00049,60]
[357143337,1743789040023,-54207.23458308,0.00049,60]
[357143379,1743789043476,-689.06264198,0.00048771,20]
[357143380,1743789043486,-310.93735802,0.00049,60]
[357143381,1743789043505,-21231.6435375,0.00049,60]
[357143397,1743789045818,-49.20433174,0.00047015,15]
[357143403,1743789046049,-798.63504911,0.00047015,15]
[357143404,1743789046058,-811.96439705,0.00049,60]
[357143405,1743789046070,-534.0499988,0.00049,60]
[357143412,1743789048652,325.32419687,0.000422,2]
[357143413,1743789068627,2000.0,0.000438,2]
[357143423,1743789450583,-152.49,0.000436,36]
[357143424,1743789450606,-16.80151886,0.00045912,2]
[357143434,1743789937110,-153.59,0.00026849,2]
[357143435,1743789937132,-718.89,0.00034516,56]
[357143436,1743789937153,-153.59,0.00034716,2]
[357143437,1743789937173,-249.81174537,0.00035707,2]
[357143438,1743789937193,-513.14091,0.00035887,30]
[357143439,1743789942088,-314.51863451,0.00035887,30]
[357143440,1743790026102,-4569.84174777,0.00035887,30]
[357143441,1743790044131,-458.96730217,0.00035887,30]
[357143442,1743790050104,-676.51140555,0.00035887,30]
[357143443,1743790050128,-210.1211743,0.000369,2]
[357143444,1743790050152,-250.0,0.00037,2]
[357143445,1743790050175,-327.82627592,0.000372,103]
[357143446,1743790050195,-165.28,0.00037982,2]
[357143447,1743790050220,-300.0,0.00039,2]
[357143448,1743790050242,-327.8262759,0.0004015,120]
[357143449,1743790050264,-350.0,0.00041,2]
[357143450,1743790050286,-126.80612749,0.00042349,2]
[357143451,1743790145078,-293.43622107,0.00042483,2]
[357143452,1743790158143,-3313.36,0.00042583,30]
[357143453,1743790158166,-150.99,0.00042583,2]
[357143454,1743790158189,-1260.73,0.00042583,2]
[357143455,1743790158215,-153.59,0.00042583,2]
[357143456,1743790158242,-400.0,0.00043,2]
[357143457,1743790158263,-327.8262759,0.000435,120]
[357143458,1743790158292,-152.49,0.000436,36]
[357143459,1743790160245,-2152.288244,0.00044768,2]
[357143460,1743790161980,200.0,0.00044767,60]
[357143461,1743790162170,200.0,0.00044767,60]
[357143462,1743790166080,-277.545,0.00044994,2]
[357143463,1743790166101,-300.0,0.00044999,5]
[357143464,1743790166127,-450.0,0.00045,2]
[357143465,1743790166148,-1000.0,0.00045,120]
[357143469,1743790231975,-1003.5759996,0.00045517,2]
[357143470,1743790231986,-540.3519349,0.00045517,2]
[357143471,1743790231998,-156.05242843,0.00045517,2]
[357143472,1743790232008,-284.361627,0.00045999,60]
[357143473,1743790232017,-1050.0,0.00046,120]
[357143474,1743790232027,-742.40854361,0.00046,2]
[357143475,1743790232040,-257.58145639,0.00046,2]
[357143476,1743790232049,-484.08696866,0.00046,2]
[357143477,1743790232060,-632.94,0.00046,2]
[357143478,1743790232071,-309.69450853,0.00046,2]
[357143479,1743790232083,-723.08598451,0.00046,2]
[357143480,1743790232094,-485.2925383,0.00046,2]
[357143481,1743790232103,-1012.26,0.00046144,2]
[357143482,1743790232112,-150.41,0.00046256,2]
[357143483,1743790232121,-152.49,0.000464,39]
[357143484,1743790232131,-152.49,0.000464,39]
[357143485,1743790232141,-497.0574637,0.000466,2]
[357143486,1743790232155,-322.83442247,0.000466,2]
[357143487,1743790232166,-944.10811383,0.000466,2]
[357143488,1743790232175,-150.0,0.00046604,7]
[357143489,1743790232186,-155.56,0.00046621,2]
[357143490,1743790232196,-156.28,0.00046635,2]
[357143491,1743790232205,-163.24731293,0.00046658,2]
[357143492,1743790232232,-539.55227005,0.00046658,2]
[357143493,1743790232243,-42.45316843,0.00046658,2]
[357143494,1743790232252,-155.56,0.00046679,2]
[357143495,1743790232261,-1493.0,0.00046723,2]
[357143496,1743790232270,-126.20780183,0.00046737,2]
[357143497,1743790232281,-29.35219817,0.00046737,2]
[357143498,1743790232291,-155.56,0.00046796,2]
[357143499,1743790232300,-676.16338269,0.00046824,2]
[357143500,1743790232404,-10.38280769,0.00046824,2]
[357143513,1743790232567,-31.68510795,0.00046824,2]
[357143515,1743790232576,-358.11,0.0004683,2]
[357143517,1743790232586,-189.49814448,0.0004685,120]
[357143519,1743790232597,-138.32813142,0.0004685,120]
[357143521,1743790232606,-155.56,0.00046854,2]
[357143523,1743790232615,-1028.33216437,0.00046854,4]
[357143525,1743790232626,-71.66783563,0.00046854,4]
[357143527,1743790232635,-768.0,0.00046854,4]
[357143529,1743790232644,-465.46624897,0.00046863,2]
[357143531,1743790232655,-736.58375103,0.00046863,2]
[357143533,1743790232664,-220.88904631,0.00046946,2]
[357143535,1743790232674,-150.0,0.00046962,2]
[357143537,1743790232683,-195.0,0.00047,120]
[357143539,1743790232692,-500.0,0.00047,2]
[357143541,1743790232703,-365.29098221,0.00047162,8]
[357143543,1743790232713,-11751.68213516,0.00047163,2]
[357143584,1743790237807,-278.1174902,0.00047162,120]
[357143585,1743790237863,-221.8825098,0.00047162,120]
[357143586,1743790237873,-233.24159914,0.00047163,2]
[357143587,1743790237885,-3854.99999999,0.00047163,2]
[357143588,1743790237916,-2052.78549733,0.00047163,2]
[357143589,1743790237971,-1982.59985937,0.00047163,2]
[357143590,1743790237983,-4024.69090901,0.00047163,2]
[357143591,1743790237993,-28407.58124908,0.00047465,2]
[357143592,1743790238003,-2156.4,0.00047545,2]
[357143593,1743790238012,-150.0,0.00047575,7]
[357143594,1743790238022,-150.0,0.00047592,7]
[357143595,1743790238031,-150.0,0.00047651,7]
[357143596,1743790238046,-356.64,0.00047659,2]
[357143597,1743790238056,-150.0,0.00047659,7]
[357143598,1743790238066,-150.0,0.00047659,7]
[357143599,1743790238075,-150.0,0.00047671,7]
[357143600,1743790238085,-150.0,0.00047677,7]
[357143601,1743790238094,-1220.71750678,0.00047699,30]
[357143602,1743790238104,-1000.0,0.00047756,2]
[357143603,1743790238114,-150.0,0.00047789,7]
[357143604,1743790238124,-150.0,0.00047861,7]
[357143605,1743790238135,-300.0,0.00047862,7]
[357143606,1743790238148,-288.07695926,0.00047873,7]
[357143607,1743790238158,-2000.0,0.00047888,120]
[357143608,1743790238168,-250.0,0.00047897,120]
[357143609,1743790238179,-308.15694912,0.00047954,2]
[357143610,1743790238188,-150.0,0.00047959,7]
[357143612,1743790238198,-155.47,0.00047983,120]
[357143614,1743790238208,-150.0,0.00047987,7]
[357143616,1743790238218,-150.0,0.00047998,7]
[357143618,1743790238228,-202.195502,0.00048,120]
[357143620,1743790238238,-150.0,0.00048044,7]
[357143622,1743790238248,-150.0,0.0004808,7]
[357143624,1743790238258,-150.0,0.00048115,7]
[357143626,1743790238267,-150.0,0.00048124,7]
[357143628,1743790238276,-150.0,0.00048127,7]
[357143630,1743790238290,-300.0,0.00048134,7]
[357143632,1743790238300,-172.78,0.00048207,2]
[357143634,1743790238310,-155.76,0.0004821,2]
[357143636,1743790238319,-7622.73,0.0004821,2]
[357143638,1743790238329,-150.0,0.00048245,7]
[357143639,1743790238340,-150.0,0.0004828,7]
[357143641,1743790238349,-150.0,0.00048356,7]
[357143643,1743790238359,-1012.26,0.00048407,2]
[357143644,1743790238368,-308.15694912,0.00048468,2]
[357143646,1743790238378,-5041.41739189,0.000485,2]
[357143648,1743790238387,-150.0,0.0004853,7]
[357143650,1743790238400,-150.0,0.00048578,7]
[357143652,1743790238410,-593.48756664,0.00048595,15]
[357143654,1743790238419,-308.15694914,0.00048605,2]
[357143656,1743790238429,-300.0,0.00048623,7]
[357143658,1743790238439,-150.0,0.00048651,7]
[357143660,1743790238448,-268.4954,0.00048667,2]
[357143661,1743790238458,-6186.2816,0.00048667,2]
[357143663,1743790238467,-891.2849,0.00048667,2]
[357143665,1743790238476,-12192.8756,0.00048667,2]
[357143667,1743790238486,-62306.7936,0.00048667,2]
[357143669,1743790238495,-150.0,0.00048695,7]
[357143670,1743790238504,-58515.87097686,0.000487,120]
[357143672,1743790238514,-150.0,0.00048712,7]
[357143674,1743790238524,-593.48756659,0.00048751,15]
[357143676,1743790238533,-588.76405966,0.00048767,120]
[357143678,1743790238546,-519.57161216,0.00048767,120]
[357143680,1743790238556,-504.57042348,0.00048767,120]
[357143682,1743790238565,-500.0,0.00048767,120]
[357143683,1743790238574,-514.74179607,0.00048767,2]
[357143685,1743790238584,-500.0,0.00048767,120]
[357143687,1743790238594,-500.0,0.00048767,2]
[357143689,1743790238604,-500.0,0.00048767,120]
[357143691,1743790238613,-795.52,0.00048767,120]
[357143693,1743790238623,-333.5085496,0.00048767,120]
[357143695,1743790238632,-504.95692414,0.00048767,120]
[357143696,1743790238642,-500.0,0.00048767,120]
[357143698,1743790238653,-500.0,0.00048767,120]
[357143700,1743790238663,-1848.9,0.00048767,120]
[357143702,1743790238672,-500.0,0.00048767,120]
[357143704,1743790238682,-559.53371928,0.00048767,120]
[357143706,1743790238692,-500.0,0.00048767,120]
[357143708,1743790238701,-500.0,0.00048767,120]
[357143709,1743790238711,-539.3272811,0.00048767,120]
[357143711,1743790238720,-507.15168103,0.00048767,120]
[357143713,1743790238730,-508.58921573,0.00048767,120]
[357143715,1743790238740,-222.15025898,0.00048767,120]
[357143718,1743790238750,-504.25104986,0.00048767,120]
[357143719,1743790238762,-500.0,0.00048767,120]
[357143721,1743790238772,-647.16843223,0.00048767,120]
[357143723,1743790238781,-500.0,0.00048767,120]
[357143725,1743790238792,-506.4597179,0.00048767,120]
[357143727,1743790238801,-513.28091809,0.00048767,120]
[357143729,1743790238811,-506.10179677,0.00048767,120]